fUST/lending_fUST_20250830
["ID","MTS","AMOUNT","RATE_DAILY","PERIOD"]
[382267099,1756554669447,-574.17,0.0002,2]
[382267100,1756554669456,-480.0,0.0002,2]
[382267101,1756554669466,-5268.55,0.0002,2]
[382267102,1756554669477,-597.42,0.0002,2]
[382267103,1756554669487,-645.48,0.0002,2]
[382267104,1756554669497,-1950.13,0.0002,2]
[382267105,1756554669507,-480.0,0.0002,2]
[382267106,1756554669526,-480.0,0.0002,2]
[382267107,1756554669536,-480.0,0.0002,2]
[382267108,1756554669546,-480.0,0.0002,2]
[382267109,1756554669556,-1368.69,0.0002,2]
[382267110,1756554669566,-655.58,0.0002,2]
[382267111,1756554669575,-480.0,0.0002,2]
[382267112,1756554669585,-480.0,0.0002,2]
[382267113,1756554669594,-1535.1,0.0002,2]
[382267114,1756554669605,-480.0,0.0002,2]
[382267115,1756554669615,-480.0,0.0002,2]
[382267116,1756554669623,-1194.41,0.0002,2]
[382267117,1756554669632,-973.06,0.0002,2]
[382267118,1756554669642,-480.0,0.0002,2]
[382267119,1756554669651,-495.56,0.0002,2]
[382267120,1756554669662,-480.0,0.0002,2]
[382267121,1756554669671,-480.0,0.0002,2]
[382267122,1756554669682,-480.0,0.0002,2]
[382267123,1756554669692,-480.0,0.0002,2]
[382267124,1756554669702,-480.0,0.0002,2]
[382267125,1756554669711,-480.0,0.0002,2]
[382267126,1756554669722,-637.85,0.0002,2]
[382267127,1756554669732,-1208.65,0.0002,2]
[382267128,1756554669742,-1514.2,0.0002,2]
[382267129,1756554669752,-610.93,0.0002,2]
[382267130,1756554669762,-480.0,0.0002,2]
[382267131,1756554669771,-480.0,0.0002,2]
[382267132,1756554669781,-480.0,0.0002,2]
[382267133,1756554669792,-480.0,0.0002,2]
[382267134,1756554669801,-480.0,0.0002,2]
[382267135,1756554669811,-1407.43,0.0002,2]
[382267136,1756554669821,-607.66,0.0002,2]
[382267137,1756554669830,-480.0,0.0002,2]
[382267138,1756554669840,-958.48,0.0002,2]
[382267139,1756554669850,-697.73,0.0002,2]
[382267140,1756554669859,-528.03,0.0002,2]
[382267141,1756554669869,-2627.8,0.0002,2]
[382267142,1756554669879,-685.77,0.0002,2]
[382267143,1756554669888,-480.0,0.0002,2]
[382267144,1756554669897,-1435.26,0.0002,2]
[382267145,1756554669906,-480.0,0.0002,2]
[382267146,1756554669916,-480.0,0.0002,2]
[382267147,1756554669926,-480.0,0.0002,2]
[382267148,1756554669935,-296405.75143941,0.0002,2]
[382267149,1756554670207,-1809.37262583,0.0002,2]
[382267150,1756554670218,-45293.87909425,0.0002,2]
[382267151,1756554670228,-1562.1591309,0.0002,2]
[382267155,1756554877344,-5000.0,0.00018476,2]
[382267156,1756554877668,-204.61318867,0.00018561,2]
[382267157,1756554877697,-300.0,0.00018661,2]
[382267158,1756554877724,-660.57,0.00018662,3]
[382267159,1756554877752,-330.29,0.00018662,3]
[382267160,1756554877779,-165.14,0.00018662,3]
[382267161,1756554877807,-495.46,0.00018662,3]
[382267162,1756554877837,-263.45579034,0.00018671,2]
[382267163,1756554877866,-500.0,0.00018671,2]
[382267164,1756554877892,-635.47735754,0.00018671,2]
[382267165,1756554877920,-313.80713931,0.00018671,2]
[382267166,1756554877948,-500.0,0.00018671,2]
[382267167,1756554877975,-500.0,0.00018671,2]
[382267168,1756554878036,-500.0,0.00018671,2]
[382267169,1756554878064,-500.0,0.00018671,2]
[382267170,1756554878092,-378.3618646,0.00018671,2]
[382267171,1756554878121,-500.0,0.00018671,2]
[382267172,1756554878149,-500.0,0.00018671,2]
[382267173,1756554878178,-500.0,0.00018671,2]
[382267174,1756554878206,-500.0,0.00018671,2]
[382267175,1756554878234,-500.0,0.00018671,2]
[382267176,1756554878262,-500.0,0.00018671,2]
[382267177,1756554878290,-500.0,0.00018671,2]
[382267178,1756554878422,-345.5567714,0.00018671,2]
[382267179,1756554878453,-500.0,0.00018671,2]
[382267180,1756554878484,-500.0,0.00018671,2]
[382267181,1756554878513,-500.0,0.00018671,2]
[382267182,1756554878544,-500.0,0.00018671,2]
[382267183,1756554878573,-500.0,0.00018671,2]
[382267184,1756554878606,-500.0,0.00018671,2]
[382267185,1756554878638,-521.55862397,0.00018671,2]
[382267186,1756554879508,-1686.21216931,0.00018672,2]
[382267187,1756554879657,-10000.01,0.00018672,2]
[382267188,1756554879687,-10000.01,0.00018672,2]
[382267189,1756554879717,-10000.01,0.00018672,2]
[382267190,1756554879745,-10000.01,0.00018672,2]
[382267191,1756554879771,-10000.01,0.00018672,2]
[382267192,1756554879818,-10000.01,0.00018672,2]
[382267193,1756554917564,-300.0,0.00018671,2]
[382267194,1756554917596,-481.0,0.00018671,2]
[382267195,1756554917728,-8438.01,0.00018672,2]
[382267196,1756554917743,-10000.01,0.00018672,2]
[382267197,1756554917769,-10000.01,0.00018672,2]
[382267198,1756554917791,-10000.01,0.00018672,2]
[382267199,1756554917835,-10000.01,0.00018672,2]
[382267200,1756554917975,-10000.01,0.00018672,2]
[382267201,1756554918097,-10000.01,0.00018672,2]
[382267202,1756554918236,-10000.01,0.00018672,2]
[382267203,1756554918443,-10000.01,0.00018672,2]
[382267204,1756554918557,-10000.01,0.00018672,2]
[382267205,1756554937548,-500.0,0.00018671,2]
[382267206,1756554937583,-500.0,0.00018671,2]
[382267207,1756554937615,-500.0,0.00018671,2]
[382267208,1756554937646,-500.0,0.00018671,2]
[382267209,1756554937677,-248.82919764,0.00018671,2]
[382267210,1756554937918,-500.0,0.00018671,2]
[382267211,1756554937949,-500.0,0.00018671,2]
[382267212,1756554937978,-500.0,0.00018671,2]
[382267213,1756554938008,-500.0,0.00018671,2]
[382267214,1756554938038,-500.0,0.00018671,2]
[382267215,1756554938067,-2.35160472,0.00018671,2]
[382267216,1756554938436,-497.64839528,0.00018671,2]
[382267217,1756554938476,-500.0,0.00018671,2]
[382267218,1756554938507,-500.0,0.00018671,2]
[382267219,1756554938555,-500.0,0.00018671,2]
[382267220,1756554938601,-500.0,0.00018671,2]
[382267221,1756554938630,-500.0,0.00018671,2]
[382267222,1756554938659,-500.0,0.00018671,2]
[382267223,1756554938687,-500.0,0.00018671,2]
[382267224,1756554938714,-500.0,0.00018671,2]
[382267225,1756554938743,-500.0,0.00018671,2]
[382267226,1756554938816,-500.0,0.00018671,2]
[382267227,1756554938844,-500.0,0.00018671,2]
[382267228,1756554938874,-500.0,0.00018671,2]
[382267229,1756554938905,-500.0,0.00018671,2]
[382267230,1756554938934,-500.0,0.00018671,2]
[382267231,1756554938963,-500.0,0.00018671,2]
[382267232,1756554938990,-500.0,0.00018671,2]
[382267233,1756554939018,-500.0,0.00018671,2]
[382267234,1756554939051,-375.0,0.00018671,2]
[382267235,1756554939080,-500.0,0.00018671,2]
[382267236,1756554939135,-500.0,0.00018671,2]
[382267237,1756554939164,-500.0,0.00018671,2]
[382267238,1756554939195,-500.0,0.00018671,2]
[382267239,1756554939228,-500.0,0.00018671,2]
[382267240,1756554939260,-500.0,0.00018671,2]
[382267241,1756554939290,-500.0,0.00018671,2]
[382267242,1756554939320,-500.0,0.00018671,2]
[382267243,1756554939349,-500.0,0.00018671,2]
[382267244,1756554939378,-500.0,0.00018671,2]
[382267245,1756554940373,-254.72320944,0.00018672,2]
[382267246,1756554940390,-500.0,0.00018672,2]
[382267247,1756554940403,-1000.01,0.00018672,2]
[382267248,1756554940416,-10000.01,0.00018672,2]
[382267249,1756554940438,-10000.01,0.00018672,2]
[382267250,1756554940456,-10000.01,0.00018672,2]
[382267251,1756554940470,-10000.01,0.00018672,2]
[382267252,1756554940492,-10000.01,0.00018672,2]
[382267253,1756554940521,-10000.01,0.00018672,2]
[382267254,1756554957758,-5000.0,0.00018485,2]
[382267255,1756554957811,-0.01,0.00018672,2]
[382267256,1756554957827,-10000.01,0.00018672,2]
[382267257,1756554957850,-10000.01,0.00018672,2]
[382267258,1756554958011,-10000.01,0.00018672,2]
[382267259,1756554958169,-10000.01,0.00018672,2]
[382267260,1756554958323,-10000.01,0.00018672,2]
[382267261,1756554958445,-10000.01,0.00018672,2]
[382267262,1756554958554,-5000.0,0.000183,2]
[382267263,1756554958890,-0.01,0.00018672,2]
[382267264,1756554958973,-10000.01,0.00018672,2]
[382267265,1756554958986,-10000.01,0.00018672,2]
[382267266,1756554981917,3152.09380735,0.0001801,2]
[382267267,1756554997606,-5000.0,0.000183,2]
[382267268,1756554997750,-6847.92619265,0.00018485,2]
[382267269,1756554997795,-10000.01,0.00018485,2]
[382267270,1756554997814,-3426.67316531,0.00018485,2]
[382267271,1756554997823,-204.61318867,0.00018571,2]
[382267272,1756554997833,-152.50331541,0.00018573,2]
[382267273,1756554997843,-500.0,0.00018671,2]
[382267274,1756554997852,-500.0,0.00018671,2]
[382267275,1756554997861,-500.0,0.00018671,2]
[382267276,1756554997871,-500.0,0.00018671,2]
[382267277,1756554997880,-431.62456716,0.00018671,2]
[382267278,1756554997890,-500.0,0.00018671,2]
[382267279,1756554997899,-500.0,0.00018671,2]
[382267280,1756554997909,-470.25758803,0.00018671,2]
[382267281,1756554997919,-500.0,0.00018671,2]
[382267282,1756554997928,-500.0,0.00018671,2]
[382267283,1756554997939,-183.86184299,0.00018671,2]
[382267284,1756554997948,-300.0,0.00018671,2]
[382267285,1756554997958,-830.47633243,0.00018672,2]
[382267286,1756554998021,-10000.01,0.00018672,2]
[382267287,1756554998057,-10000.01,0.00018672,2]
[382267288,1756554998180,-10000.01,0.00018672,2]
[382267289,1756554998318,-10000.01,0.00018672,2]
[382267290,1756554998446,-10000.01,0.00018672,2]
[382267291,1756554998559,-10000.01,0.00018672,2]
[382267292,1756555046528,1000.0,0.00017871,2]
[382267293,1756555051503,6818.3278407,0.00017871,2]
[382267301,1756555517101,261.846011,0.00017576,2]
[382267306,1756555709482,151.0,0.00027397,120]
[382267308,1756555737730,746.5169299,0.00017567,2]
[382267309,1756555792956,471.179553,0.00013699,2]
[382267311,1756555810911,702.1396654,0.0001801,2]
[382267312,1756555810932,1243.17210268,0.0001801,2]
[382267431,1756555838457,-666.47368779,0.00018095,2]
[382267432,1756555838468,-1110.91819394,0.00018095,2]
[382267433,1756555838480,-1086.71063226,0.00018095,2]
[382267434,1756555838490,-1234.24533335,0.00018195,2]
[382267435,1756555838501,-594.98404894,0.00018195,2]
[382267436,1756555838512,-561.84778779,0.00018195,2]
[382267437,1756555838523,-1036.8367471,0.00018195,2]
[382267438,1756555838535,-949.80063099,0.00018195,2]
[382267439,1756555840553,-622.28545183,0.00018195,2]
[382267440,1756555840563,-1246.69676243,0.00018279,2]
[382267441,1756555840920,-516.76249321,0.00018279,2]
[382267442,1756555840933,-5995.83019078,0.00018279,2]
[382267443,1756555840943,-200.88099622,0.00018279,2]
[382267444,1756555840952,-200.8809962,0.00018327,2]
[382267445,1756555840961,-200.8809962,0.00018375,2]
[382267446,1756555840971,-384.01761246,0.00018379,2]
[382267447,1756555840980,-200.8809962,0.00018424,2]
[382267448,1756555840989,-200.8809962,0.00018472,2]
[382267449,1756555840999,-193.91394028,0.00018472,2]
[382267450,1756555841008,-294.28705232,0.00018564,2]
[382267503,1756555843309,-5.71294768,0.00018564,2]
[382267504,1756555843318,-300.0,0.00018564,2]
[382267505,1756555843328,-300.0,0.00018564,2]
[382267506,1756555843337,-300.0,0.00018564,2]
[382267507,1756555843347,-300.0,0.00018564,2]
[382267508,1756555843356,-846.21293923,0.00018564,2]
[382267509,1756555843386,-353.78706077,0.00018564,2]
[382267510,1756555843398,-1200.0,0.00018565,2]
[382267511,1756555843410,-500.0,0.00018566,2]
[382267512,1756555843420,-500.0,0.00018566,2]
[382267513,1756555843429,-500.0,0.00018566,2]
[382267514,1756555843439,-500.0,0.00018566,2]
[382267515,1756555843448,-500.0,0.00018566,2]
[382267516,1756555843458,-500.0,0.00018566,2]
[382267517,1756555843469,-500.0,0.00018566,2]
[382267518,1756555843479,-500.0,0.00018566,2]
[382267519,1756555843488,-500.0,0.00018566,2]
[382267520,1756555843498,-500.0,0.00018566,2]
[382267521,1756555843508,-382.39546958,0.00018566,2]
[382267522,1756555843517,-10179.371277,0.00018566,2]
[382267528,1756556005223,5000.0,0.0001801,2]
[382267529,1756556030620,3756.83789732,0.00017814,2]
[382267530,1756556030651,2175.27328868,0.00017814,2]
[382267531,1756556037574,613.635224,0.00017738,2]
[382267532,1756556037914,310.05936772,0.00017918,2]
[382267533,1756556042491,151.0,0.00027397,120]
[382267535,1756556125154,6901.0421196,0.00017569,2]
[382267536,1756556125175,10000.01,0.00017569,2]
[382267537,1756556125197,3823.6006046,0.00017569,2]
[382267538,1756556150483,351.0936473,0.00017544,2]
[382267539,1756556191475,666.0,0.00017544,2]
[382267540,1756556265922,5000.0,0.0001801,2]
[382267542,1756556280049,-167.3945075,0.00018187,2]
[382267543,1756556280078,-1200.0,0.00018471,2]
[382267544,1756556280106,-300.0,0.00018471,2]
[382267545,1756556280134,-1200.0,0.00018472,2]
[382267546,1756556281057,-4424.5367331,0.00018473,2]
[382267547,1756556281118,-10000.01,0.00018473,2]
[382267548,1756556281309,-10000.01,0.00018473,2]
[382267549,1756556281384,-4153.12693821,0.00018473,2]
[382267550,1756556281415,-453.24628328,0.00018566,2]
[382267551,1756556281461,-787.26355702,0.00018566,2]
[382267552,1756556281564,-300.0,0.00018569,2]
[382267553,1756556281592,-300.0,0.00018569,2]
[382267554,1756556281619,-934.45512222,0.00018569,2]
[382267555,1756556281649,-500.0,0.0001857,2]
[382267556,1756556281680,-500.0,0.0001857,2]
[382267557,1756556281710,-500.0,0.0001857,2]
[382267558,1756556281738,-500.0,0.0001857,2]
[382267559,1756556281767,-500.0,0.0001857,2]
[382267560,1756556281796,-500.0,0.0001857,2]
[382267561,1756556281823,-246.42813058,0.0001857,2]
[382267562,1756556282362,-438.2434944,0.0001857,2]
[382267563,1756556324456,553.7180971,0.00017571,2]
[382267564,1756556390096,1000.0,0.00017531,2]
[382267565,1756556490699,5000.0,0.0001801,2]
[382267566,1756556503170,3712.76545361,0.00031199,65]
[382267567,1756556513831,3446.2919029,0.0001801,2]
[382267568,1756556513854,1553.7080971,0.0001801,2]
[382267569,1756556537111,5000.0,0.0001801,2]
[382267570,1756556560757,2785.41174052,0.0001801,2]
[382267572,1756556627998,285.336259,0.0001749,2]
[382267573,1756556659573,159.0,0.00018,2]
[382267574,1756556665828,159.0,0.00018,2]
[382267575,1756556666431,57.55390338,0.00018,2]
[382267576,1756556666453,101.44609662,0.00018,2]
[382267577,1756556666924,159.0,0.00018,2]
[382267578,1756556677332,159.0,0.00018,3]
[382267579,1756556679462,159.0,0.00018,3]
[382267580,1756556683879,159.0,0.00018,3]
[382267581,1756556684659,159.0,0.00018,3]
[382267583,1756556726106,159.0,0.000273,120]
[382267585,1756556736651,159.0,0.000273,120]
[382267587,1756556802126,-272.49992011,0.00018082,2]
[382267588,1756556814166,9103.56390338,0.00017422,2]
[382267589,1756556814190,2483.53187472,0.00017422,2]
[382267590,1756556848372,617.5594066,0.00017418,2]
[382267593,1756556868429,6898.91871868,0.00018,2]
[382267594,1756556868454,10000.01,0.00018,2]
[382267595,1756556868478,10000.01,0.00018,2]
[382267596,1756556868504,10000.01,0.00018,2]
[382267597,1756556868705,10000.01,0.00018,2]
[382267598,1756556868730,6420.8453745,0.00018,2]
[382267599,1756556872761,2206.37973969,0.00018,2]
[382267602,1756556901948,1372.78488581,0.000176,2]
[382267603,1756556901971,520.80976396,0.000176,2]
[382267605,1756556903147,704.44199769,0.0001801,2]
[382267609,1756556911659,8774.75823835,0.00017,2]
[382267610,1756556911681,10000.01,0.00017,2]
[382267611,1756556911702,10000.01,0.00017,2]
[382267612,1756556911724,10000.01,0.00017,2]
[382267613,1756556911746,10000.01,0.00017,2]
[382267614,1756556911768,10000.01,0.00017,2]
[382267615,1756556911790,10000.01,0.00017,2]
[382267616,1756556911811,10000.01,0.00017,2]
[382267617,1756556911834,8092.61087359,0.00017,2]
[382267652,1756556950087,1907.39912641,0.0001801,2]
[382267653,1756556950110,3092.60087359,0.0001801,2]
[382267654,1756556974411,5000.0,0.0001801,2]
[382267689,1756557032395,493.463571,0.00013699,2]
[382267701,1756557032923,-602.27466169,0.00018082,2]
[382267702,1756557032933,-258.30226686,0.00018134,2]
[382267738,1756557038389,-3326.72524221,0.00018134,2]
[382267739,1756557038403,-168.0,0.00018234,2]
[382267740,1756557038424,-160.0,0.00018283,2]
[382267741,1756557038447,-1200.0,0.00018372,2]
[382267742,1756557038457,-832.11591162,0.00018373,2]
[382267943,1756557043531,-2553.31828644,0.00018373,2]
[382267944,1756557043541,-170.9691148,0.000184,2]
[382267945,1756557043551,-300.0,0.00018417,2]
[382267946,1756557043560,-300.0,0.00018417,2]
[382267947,1756557043570,-300.0,0.00018417,2]
[382267948,1756557043579,-300.0,0.00018417,2]
[382267949,1756557043589,-300.0,0.00018417,2]
[382267950,1756557043599,-5938.35929676,0.00018464,2]
[382267966,1756557046607,-42346.26890373,0.00018464,2]
[382267967,1756557046619,-739.00812989,0.00018464,2]
[382267984,1756557092565,212.66888906,0.0001,7]
[382267986,1756557142234,666.0,0.00017524,2]
[382267989,1756557239389,535.27666635,0.00017911,2]
[382267990,1756557239412,227.27893122,0.00017911,2]
[382267991,1756557248663,9772.73106878,0.00017509,2]
[382267992,1756557248687,227.26893122,0.00017509,2]
[382268004,1756557356996,5000.0,0.0001801,2]
[382268005,1756557373519,2827.2558326,0.00017438,2]
[382268006,1756557479952,226.38,0.00015984,2]
[382268007,1756557496932,150.42,0.00015984,2]
[382268008,1756557497238,150.41,0.00015984,2]
[382268021,1756557668151,224.081233,0.0001733,2]
[382268022,1756557728859,1194.19400318,0.00017764,2]
[382268023,1756557728884,562.80599682,0.00017764,2]
[382268024,1756557734262,1757.0,0.0001792,2]
[382268025,1756557747631,7680.20400318,0.00017422,2]
[382268026,1756557747653,10000.01,0.00017422,2]
[382268027,1756557747675,10000.01,0.00017422,2]
[382268028,1756557747696,5838.67298452,0.00017422,2]
[382268029,1756557762768,4161.33701548,0.0001801,2]
[382268030,1756557762791,838.66298452,0.0001801,2]
[382268031,1756557786128,5000.0,0.0001801,2]
[382268033,1756557810093,4161.34701548,0.0001801,2]
[382268034,1756557810116,838.65298452,0.0001801,2]
[382268036,1756557835621,5000.0,0.0001801,2]
[382268037,1756557837414,1000.0,0.00017234,2]
[382268042,1756557860261,3161.35701548,0.0001801,2]
[382268043,1756557860285,1838.64298452,0.0001801,2]
[382268046,1756557892575,-177.9541991,0.00018164,2]
[382268047,1756557892602,-177.95419908,0.00018181,2]
[382268048,1756557892630,-177.95419908,0.00018197,2]
[382268049,1756557892658,-177.95419908,0.00018214,2]
[382268050,1756557892689,-1757.0,0.0001822,2]
[382268051,1756557892718,-1200.0,0.00018264,2]
[382268052,1756557892747,-300.0,0.00018264,2]
[382268053,1756557892909,-4223.0719965,0.00018265,2]
[382268054,1756557893008,-1553.866007,0.00018265,2]
[382268055,1756557893040,-168.0,0.0001828,2]
[382268056,1756557893242,-168.0,0.0001829,2]
[382268057,1756557893271,-322.97767534,0.000183,2]
[382268058,1756557893299,-998.40255591,0.00018313,2]
[382268059,1756557893446,158.0,0.00018,4]
[382268060,1756557894196,-3639.93188877,0.00018314,2]
[382268061,1756557894226,-10000.01,0.00018314,2]
[382268062,1756557894353,-10000.01,0.00018314,2]
[382268063,1756557894561,-10000.01,0.00018314,2]
[382268064,1756557894641,-10000.01,0.00018314,2]
[382268065,1756557912627,-300.0,0.00018264,2]
[382268066,1756557912670,-9400.01,0.00018265,2]
[382268067,1756557912748,-10000.01,0.00018265,2]
[382268068,1756557912898,-1362.86671268,0.00018265,2]
[382268069,1756557912933,-7274.27657464,0.00018265,2]
[382268070,1756557913006,-300.0,0.00018313,2]
[382268071,1756557913035,-300.0,0.00018313,2]
[382268072,1756557913063,-300.0,0.00018313,2]
[382268073,1756557913093,-1200.0,0.00018313,2]
[382268074,1756557913121,-300.0,0.00018313,2]
[382268075,1756557913234,-5200.01,0.00018314,2]
[382268076,1756557913336,-1160.01811123,0.00018314,2]
[382268077,1756557913364,-1903.03577407,0.00018314,2]
[382268078,1756557913431,-3873.9022294,0.00018314,2]
[382268079,1756557913472,-800.0,0.00018324,2]
[382268080,1756557913500,-846.98518876,0.00018332,2]
[382268081,1756557913529,-254.52718479,0.00018354,2]
[382268082,1756557913558,-1000.0,0.00018354,2]
[382268083,1756557913587,-1000.0,0.00018354,2]
[382268084,1756557913616,-1000.0,0.00018354,2]
[382268085,1756557913817,-1000.0,0.00018354,2]
[382268086,1756557913847,-1000.0,0.00018354,2]
[382268087,1756557913878,-187.78006525,0.00018354,2]
[382268088,1756557913909,-1000.0,0.00018354,2]
[382268089,1756557913937,-500.0,0.00018354,2]
[382268090,1756557914120,-500.0,0.00018354,2]
[382268091,1756557914152,-151.0,0.00018354,2]
[382268092,1756557914181,-151.0,0.00018354,2]
[382268093,1756557914210,-20.4498695,0.00018354,2]
[382268094,1756557914291,-979.5501305,0.00018354,2]
[382268095,1756557914320,-500.0,0.00018354,2]
[382268096,1756557914349,-151.0,0.00018354,2]
[382268097,1756557914381,-155.919739,0.00018355,3]
[382268098,1756557914556,-3572.939739,0.00018355,3]
[382268099,1756557914731,-151.0,0.00018354,2]
[382268100,1756557914761,-1000.0,0.00018354,2]
[382268101,1756557914790,-2854.130522,0.00018355,3]
[382268102,1756557914901,-3898.29,0.00018355,3]
[382268103,1756557914930,-254.28,0.00018355,3]
[382268104,1756557915045,-1694.87,0.00018355,3]
[382268105,1756557915074,-974.57,0.00018355,3]
[382268106,1756557915104,-487.29,0.00018355,3]
[382268107,1756557915136,-243.64,0.00018355,3]
[382268108,1756557915167,-730.96,0.00018355,3]
[382268109,1756557915198,-797.13,0.00018355,3]
[382268110,1756557915385,-151.0,0.00018354,2]
[382268111,1756557915418,-500.0,0.00018354,2]
[382268112,1756557915451,-216.25802849,0.00018355,3]
[382268113,1756557915482,-884.85,0.00018355,3]
[382268114,1756557915511,-425.65682239,0.00018355,3]
[382268115,1756557915540,-529.89603018,0.00018355,3]
[382268116,1756557915746,-290.01689684,0.00018354,2]
[382268117,1756557915776,-151.0,0.00018354,2]
[382268118,1756557915805,-3341.03820285,0.00018363,2]
[382268119,1756557915961,-2435.89980062,0.00018363,2]
[382268120,1756557915993,-1757.0,0.00018364,2]
[382268121,1756557916022,-500.0,0.00018364,2]
[382268122,1756557916052,-114.21039876,0.00018364,2]
[382268123,1756557916456,-385.78960124,0.00018364,2]
[382268124,1756557916466,-237.49940628,0.00018364,2]
[382268125,1756557916490,-262.50059372,0.00018364,2]
[382268126,1756557916501,-224.78940628,0.00018364,2]
[382268127,1756557916516,-39.62217057,0.00018364,2]
[382268128,1756557916526,-193.32184064,0.00018364,2]
[382268129,1756557916535,-10.69598879,0.00018364,2]
[382268130,1756557916595,-151.0,0.00018354,2]
[382268131,1756557916604,-218.09470611,0.00018364,2]
[382268132,1756557916614,-361.86529389,0.00018364,2]
[382268133,1756557916683,-500.0,0.00018354,2]
[382268134,1756557916692,-233.48820338,0.00018364,2]
[382268135,1756557916701,-63.64179662,0.00018364,2]
[382268136,1756557916727,-143.09,0.00018364,2]
[382268137,1756557916805,-151.0,0.00018354,2]
[382268138,1756557916820,-434.76222353,0.00018364,2]
[382268139,1756557916830,-65.23777647,0.00018364,2]
[382268140,1756557916852,-216.25802849,0.00018354,2]
[382268141,1756557916879,-783.74197151,0.00018354,2]
[382268142,1756557916889,-101.10802849,0.00018364,2]
[382268143,1756557916904,-333.65419504,0.00018364,2]
[382268144,1756557916913,-92.00262735,0.00018364,2]
[382268145,1756557916927,-407.99737265,0.00018364,2]
[382268146,1756557916936,-121.89865753,0.00018364,2]
[382268147,1756557916964,-378.10134247,0.00018364,2]
[382268148,1756557916973,-500.0,0.00018364,2]
[382268149,1756557916983,-195.75789333,0.00018364,2]
[382268150,1756557916992,-500.0,0.00018364,2]
[382268151,1756557917001,-3010.82900208,0.00018365,2]
[382268152,1756557917055,-290.01689684,0.00018365,2]
[382268153,1756557917070,-151.0,0.00018365,2]
[382268154,1756557917098,-3217.74677196,0.00018365,2]
[382268155,1756557917107,-2559.19123151,0.00018365,2]
[382268156,1756557917144,-2435.89980062,0.00018365,2]
[382268157,1756557917164,-1757.0,0.00018365,2]
[382268158,1756557917183,-500.0,0.00018365,2]
[382268159,1756557917213,-151.0,0.00018354,2]
[382268160,1756557917225,-349.0,0.00018365,2]
[382268161,1756557917503,160.0,0.00018,4]
[382268167,1756558041245,468.790392,0.00013699,2]
[382268169,1756558055303,200.0,0.0002739,120]
[382268171,1756558075891,229.1439449,0.00017357,2]
[382268211,1756558234979,-229.57683503,0.00018164,2]
[382268212,1756558234988,-300.0,0.00018264,2]
[382268213,1756558234998,-300.0,0.00018264,2]
[382268214,1756558235009,-300.0,0.00018264,2]
[382268215,1756558235018,-1200.0,0.00018264,2]
[382268216,1756558235028,-300.0,0.00018264,2]
[382268217,1756558235037,-4955.07320526,0.00018265,2]
[382268218,1756558235047,-7530.23371769,0.00018265,2]
[382268219,1756558235064,-11161.20847387,0.00018265,2]
[382268220,1756558235075,-800.0,0.00018289,2]
[382268221,1756558235084,-200.0,0.000183,2]
[382268222,1756558235094,-50000.0,0.00018314,2]
[382268224,1756558235103,-4955.07320525,0.00018314,2]
[382268225,1756558235113,-1200.0,0.00018353,2]
[382268226,1756558235122,-151.25000757,0.00018354,2]
[382268227,1756558235132,-1000.0,0.00018354,2]
[382268228,1756558235142,-1000.0,0.00018354,2]
[382268229,1756558235151,-1000.0,0.00018354,2]